[Event "*** Titled Tuesday Blitz"]
[Site "Chess.com"]
[Date "2019.04.02"]
[Round "8"]
[White "Fy_Rakotomaharo"]
[Black "champ2005"]
[Result "0-1"]
[WhiteElo "2638"]
[BlackElo "2810"]
[TimeControl "180+2"]
[EndTime "15:52:47 PDT"]
[Termination "champ2005 won by resignation"]

1. d4 {[%clk 0:03:01.9]} 1... Nf6 {[%clk 0:03:00.7]} 2. c4 {[%clk 0:03:02.4]}
2... g6 {[%clk 0:03:01.9]} 3. Nc3 {[%clk 0:03:03.3]} 3... Bg7 {[%clk 0:03:03.1]}
4. e4 {[%clk 0:03:04.6]} 4... d6 {[%clk 0:03:04.6]} 5. Be2 {[%clk 0:03:06]} 5...
O-O {[%clk 0:03:05.1]} 6. Bg5 {[%clk 0:03:07.5]} 6... c5 {[%clk 0:02:58.4]} 7.
d5 {[%clk 0:03:08.3]} 7... Nbd7 {[%clk 0:02:54.4]} 8. Qd2 {[%clk 0:03:03.5]}
8... a6 {[%clk 0:02:54.1]} 9. a4 {[%clk 0:03:00.5]} 9... Qb6 {[%clk 0:02:37]}
10. a5 {[%clk 0:02:55.3]} 10... Qc7 {[%clk 0:02:38.1]} 11. h4 {[%clk 0:02:51.9]}
11... e6 {[%clk 0:02:34.9]} 12. h5 {[%clk 0:02:30.5]} 12... exd5 {[%clk
0:02:35.7]} 13. cxd5 {[%clk 0:02:30.4]} 13... Re8 {[%clk 0:02:36.3]} 14. Qf4
{[%clk 0:02:21.2]} 14... b5 {[%clk 0:02:30.4]} 15. axb6 {[%clk 0:02:17.8]} 15...
Qxb6 {[%clk 0:02:31.5]} 16. Rb1 {[%clk 0:01:35.3]} 16... Qb4 {[%clk 0:02:24.5]}
17. hxg6 {[%clk 0:01:31.7]} 17... fxg6 {[%clk 0:02:11.1]} 18. f3 {[%clk
0:01:00.5]} 18... Nxd5 {[%clk 0:02:06.7]} 19. exd5 {[%clk 0:01:00.5]} 19...
Bxc3+ {[%clk 0:02:04.6]} 20. Kf1 {[%clk 0:01:00.3]} 20... Qxf4 {[%clk
0:02:01.7]} 21. Bxf4 {[%clk 0:01:01.4]} 21... Be5 {[%clk 0:02:02.9]} 22. Nh3
{[%clk 0:01:00]} 22... Rb8 {[%clk 0:02:01.1]} 23. b3 {[%clk 0:00:54.4]} 23...
Nf6 {[%clk 0:02:00.5]} 24. Bxe5 {[%clk 0:00:42.4]} 24... Rxe5 {[%clk 0:02:00.9]}
25. Nf4 {[%clk 0:00:38.8]} 25... Bf5 {[%clk 0:01:58.3]} 26. Rb2 {[%clk
0:00:39.6]} 26... g5 {[%clk 0:01:57.5]} 27. Nh5 {[%clk 0:00:30.4]} 27... Nxd5
{[%clk 0:01:42.5]} 28. Bxa6 {[%clk 0:00:31.2]} 28... Bg6 {[%clk 0:01:32.3]} 29.
Kf2 {[%clk 0:00:20.5]} 29... Nb4 {[%clk 0:01:33.1]} 30. Be2 {[%clk 0:00:19.3]}
30... Rf8 {[%clk 0:01:29.8]} 31. Ng3 {[%clk 0:00:19.4]} 31... d5 {[%clk
0:01:29.4]} 32. Ra1 {[%clk 0:00:19.6]} 32... d4 {[%clk 0:01:29.2]} 33. Bc4+
{[%clk 0:00:20.9]} 33... Kh8 {[%clk 0:01:26.3]} 34. Re2 {[%clk 0:00:21.9]} 34...
Rxe2+ {[%clk 0:01:24.1]} 35. Kxe2 {[%clk 0:00:23]} 35... Nc2 {[%clk 0:01:23.9]}
36. Ra7 {[%clk 0:00:22.6]} 36... Ne3 {[%clk 0:01:24.5]} 37. Kf2 {[%clk
0:00:20.2]} 37... Nxc4 {[%clk 0:01:17.3]} 38. bxc4 {[%clk 0:00:22.1]} 38... Rb8
{[%clk 0:01:18]} 39. Rc7 {[%clk 0:00:21.6]} 39... Rb2+ {[%clk 0:01:19.1]} 40.
Kg1 {[%clk 0:00:19]} 40... d3 {[%clk 0:01:18.1]} 41. Nf1 {[%clk 0:00:18.8]}
41... Rb1 {[%clk 0:01:17.2]} 42. Kf2 {[%clk 0:00:15.9]} 42... Rb2+ {[%clk
0:01:16.5]} 43. Kg1 {[%clk 0:00:16.7]} 43... Rc2 {[%clk 0:00:59.6]} 44. Rxc5
{[%clk 0:00:17.1]} 44... Bf7 {[%clk 0:01:00.9]} 45. Rxg5 {[%clk 0:00:14.5]}
45... d2 {[%clk 0:00:59.8]} 46. Nxd2 {[%clk 0:00:15.8]} 46... Rxd2 {[%clk
0:01:01.1]} 47. c5 {[%clk 0:00:17]} 47... Rc2 {[%clk 0:01:02.2]} 48. Kh2 {[%clk
0:00:18.2]} 48... h6 {[%clk 0:01:03.1]} 49. Re5 {[%clk 0:00:19.3]} 49... Kg7
{[%clk 0:01:04.4]} 50. f4 {[%clk 0:00:20.2]} 50... Kf6 {[%clk 0:01:02.7]} 51.
Kh3 {[%clk 0:00:21.5]} 51... Rc4 {[%clk 0:01:01]} 52. g3 {[%clk 0:00:22.2]}
52... Be6+ {[%clk 0:01:01.2]} 53. Kg2 {[%clk 0:00:22.4]} 53... Bg4 {[%clk
0:00:58.7]} 54. Kf2 {[%clk 0:00:22.1]} 54... Rc3 {[%clk 0:00:59]} 55. Rd5 {[%clk
0:00:22.7]} 55... h5 {[%clk 0:00:50.4]} 56. Re5 {[%clk 0:00:21.4]} 56... Rf3+
{[%clk 0:00:48.8]} 57. Kg2 {[%clk 0:00:22.4]} 57... Rd3 {[%clk 0:00:50.1]} 58.
Kf2 {[%clk 0:00:22.7]} 58... Rd2+ {[%clk 0:00:51.3]} 59. Kg1 {[%clk 0:00:21.3]}
59... Rc2 {[%clk 0:00:51]} 60. Kf1 {[%clk 0:00:20.8]} 60... Bf3 {[%clk
0:00:39.7]} 61. Rg5 {[%clk 0:00:21.4]} 61... Ke6 {[%clk 0:00:37.6]} 62. Re5+
{[%clk 0:00:20.8]} 62... Kf6 {[%clk 0:00:35.4]} 63. Rg5 {[%clk 0:00:22.7]} 63...
Bg4 {[%clk 0:00:30]} 64. Re5 {[%clk 0:00:22.4]} 64... Kg6 {[%clk 0:00:30.7]} 65.
Rg5+ {[%clk 0:00:22.7]} 65... Kf7 {[%clk 0:00:30.2]} 66. Re5 {[%clk 0:00:23]}
66... Kf6 {[%clk 0:00:31.5]} 67. Kg1 {[%clk 0:00:23.3]} 67... Bf3 {[%clk
0:00:23.2]} 68. Rg5 {[%clk 0:00:23.2]} 68... Ra2 {[%clk 0:00:18.6]} 69. Kf1
{[%clk 0:00:23.4]} 69... Bg4 {[%clk 0:00:17.3]} 70. Re5 {[%clk 0:00:22.4]} 70...
Ra3 {[%clk 0:00:18.4]} 71. Kf2 {[%clk 0:00:22.5]} 71... Ra6 {[%clk 0:00:19.4]}
72. Rg5 {[%clk 0:00:21.5]} 72... Re6 {[%clk 0:00:19.9]} 73. Rd5 {[%clk
0:00:21.8]} 73... Re2+ {[%clk 0:00:20.8]} 74. Kf1 {[%clk 0:00:22.4]} 74... Ke6
{[%clk 0:00:19.9]} 75. Rg5 {[%clk 0:00:22.8]} 75... Rc2 {[%clk 0:00:20.4]} 76.
Kg1 {[%clk 0:00:23.1]} 76... Kd7 {[%clk 0:00:21.1]} 77. Re5 {[%clk 0:00:15.8]}
77... Kc6 {[%clk 0:00:22.1]} 78. f5 {[%clk 0:00:17.2]} 78... Rxc5 {[%clk
0:00:22.9]} 79. Rxc5+ {[%clk 0:00:16.1]} 79... Kxc5 {[%clk 0:00:24.8]} 80. f6
{[%clk 0:00:18]} 80... Kd6 {[%clk 0:00:26.1]} 81. Kf2 {[%clk 0:00:19.9]} 81...
Ke6 {[%clk 0:00:27.4]} 82. Ke3 {[%clk 0:00:21.5]} 82... Kf7 {[%clk 0:00:27.5]}
83. Kf4 {[%clk 0:00:23.4]} 83... Kxf6 {[%clk 0:00:29.4]} 0-1

[Event "*** Titled Tuesday Blitz"]
[Site "Chess.com"]
[Date "2019.04.02"]
[Round "8"]
[White "iLuusions"]
[Black "fu24"]
[Result "1-0"]
[WhiteElo "2620"]
[BlackElo "2514"]
[TimeControl "180+2"]
[EndTime "15:53:02 PDT"]
[Termination "iLuusions won by checkmate"]

1. d4 {[%clk 0:03:01.9]} 1... e6 {[%clk 0:03:01.9]} 2. c4 {[%clk 0:03:02.3]}
2... f5 {[%clk 0:03:03]} 3. Nc3 {[%clk 0:02:59.7]} 3... Nf6 {[%clk 0:03:04.3]}
4. g3 {[%clk 0:03:01.2]} 4... Bb4 {[%clk 0:03:05.8]} 5. Bg2 {[%clk 0:03:01.9]}
5... O-O {[%clk 0:03:07]} 6. Nh3 {[%clk 0:03:03.4]} 6... d6 {[%clk 0:03:08.2]}
7. O-O {[%clk 0:03:04.5]} 7... Bxc3 {[%clk 0:03:09.7]} 8. bxc3 {[%clk
0:03:05.6]} 8... c6 {[%clk 0:03:11.6]} 9. Qc2 {[%clk 0:02:58.8]} 9... e5 {[%clk
0:03:12.3]} 10. Rd1 {[%clk 0:02:54.5]} 10... Qe7 {[%clk 0:02:57]} 11. a4 {[%clk
0:02:51.5]} 11... e4 {[%clk 0:02:52.8]} 12. c5 {[%clk 0:02:26.5]} 12... dxc5
{[%clk 0:02:31.5]} 13. Ba3 {[%clk 0:02:02.2]} 13... Na6 {[%clk 0:02:30.5]} 14.
e3 {[%clk 0:01:59.1]} 14... Be6 {[%clk 0:02:30.8]} 15. Bf1 {[%clk 0:01:59.1]}
15... Qc7 {[%clk 0:02:20.2]} 16. Nf4 {[%clk 0:01:53.6]} 16... Bf7 {[%clk
0:02:14.5]} 17. Bxa6 {[%clk 0:01:50.8]} 17... bxa6 {[%clk 0:02:15.4]} 18. Bxc5
{[%clk 0:01:52.2]} 18... Rfb8 {[%clk 0:02:11.5]} 19. Rdb1 {[%clk 0:01:45.5]}
19... Bc4 {[%clk 0:02:02.7]} 20. h4 {[%clk 0:01:45.1]} 20... Nd5 {[%clk
0:01:52.7]} 21. Rb4 {[%clk 0:01:22.3]} 21... Nxf4 {[%clk 0:01:33.4]} 22. exf4
{[%clk 0:01:03]} 22... Rxb4 {[%clk 0:01:08.6]} 23. cxb4 {[%clk 0:01:02.6]} 23...
Qf7 {[%clk 0:01:07.1]} 24. Rc1 {[%clk 0:00:53.2]} 24... Bb3 {[%clk 0:01:04.5]}
25. Qe2 {[%clk 0:00:36.3]} 25... Bxa4 {[%clk 0:01:01.3]} 26. Qxa6 {[%clk
0:00:36.5]} 26... Bb5 {[%clk 0:01:01.9]} 27. Qa3 {[%clk 0:00:38]} 27... a6
{[%clk 0:01:00.6]} 28. Rc2 {[%clk 0:00:36.5]} 28... Re8 {[%clk 0:00:59.3]} 29.
Qe3 {[%clk 0:00:28.5]} 29... Qh5 {[%clk 0:01:00]} 30. Rc1 {[%clk 0:00:28.5]}
30... h6 {[%clk 0:00:56.7]} 31. Bd6 {[%clk 0:00:27.9]} 31... Ra8 {[%clk
0:00:48.6]} 32. Bc7 {[%clk 0:00:28.2]} 32... Ra7 {[%clk 0:00:49.1]} 33. Bb6
{[%clk 0:00:27.4]} 33... Ra8 {[%clk 0:00:49.3]} 34. Kh2 {[%clk 0:00:23.2]} 34...
Kh7 {[%clk 0:00:50.3]} 35. Rc5 {[%clk 0:00:21.4]} 35... Rf8 {[%clk 0:00:47]} 36.
Rc1 {[%clk 0:00:20.8]} 36... Rf7 {[%clk 0:00:46.7]} 37. Bc5 {[%clk 0:00:21.5]}
37... Qg6 {[%clk 0:00:45.6]} 38. Bb6 {[%clk 0:00:22.2]} 38... Qe6 {[%clk
0:00:46.2]} 39. Bc5 {[%clk 0:00:22.9]} 39... Qa2 {[%clk 0:00:47.2]} 40. Kg1
{[%clk 0:00:22.6]} 40... Rd7 {[%clk 0:00:46.1]} 41. Qc3 {[%clk 0:00:23.1]} 41...
Rd8 {[%clk 0:00:40.6]} 42. Qc2 {[%clk 0:00:23.4]} 42... Qf7 {[%clk 0:00:40.3]}
43. Qc3 {[%clk 0:00:24.8]} 43... Ra8 {[%clk 0:00:41]} 44. Bb6 {[%clk 0:00:25.1]}
44... Qe6 {[%clk 0:00:40.2]} 45. Qe3 {[%clk 0:00:24.7]} 45... Qd5 {[%clk
0:00:34.3]} 46. Qc3 {[%clk 0:00:24.3]} 46... Qf7 {[%clk 0:00:33.1]} 47. Qe3
{[%clk 0:00:24.8]} 47... Bc4 {[%clk 0:00:34.4]} 48. Qc3 {[%clk 0:00:25]} 48...
Bd5 {[%clk 0:00:36]} 49. Qe3 {[%clk 0:00:25.9]} 49... Qe7 {[%clk 0:00:36.6]} 50.
Bc5 {[%clk 0:00:24.7]} 50... Qe8 {[%clk 0:00:36.3]} 51. Ra1 {[%clk 0:00:25.8]}
51... Qb8 {[%clk 0:00:34.8]} 52. Qe2 {[%clk 0:00:26.6]} 52... Qb7 {[%clk
0:00:35.6]} 53. Ra5 {[%clk 0:00:26.6]} 53... Kg6 {[%clk 0:00:34.5]} 54. Kh2
{[%clk 0:00:26.6]} 54... Kf6 {[%clk 0:00:35.8]} 55. Kg1 {[%clk 0:00:27.7]} 55...
g5 {[%clk 0:00:33.7]} 56. fxg5+ {[%clk 0:00:24.9]} 56... hxg5 {[%clk 0:00:35.6]}
57. Qh5 {[%clk 0:00:23.3]} 57... Rg8 {[%clk 0:00:34.8]} 58. Qh6+ {[%clk
0:00:15.8]} 58... Kf7 {[%clk 0:00:20.1]} 59. Qh7+ {[%clk 0:00:15.7]} 59... Rg7
{[%clk 0:00:21]} 60. Qxf5+ {[%clk 0:00:16.8]} 60... Kg8 {[%clk 0:00:22.4]} 61.
hxg5 {[%clk 0:00:11.8]} 61... e3 {[%clk 0:00:19.7]} 62. fxe3 {[%clk 0:00:11.8]}
62... Qc7 {[%clk 0:00:21]} 63. Qf4 {[%clk 0:00:10.5]} 63... Qd7 {[%clk
0:00:21.4]} 64. Rxa6 {[%clk 0:00:09.5]} 64... Qc8 {[%clk 0:00:14]} 65. Ra1
{[%clk 0:00:09]} 65... Rf7 {[%clk 0:00:10.7]} 66. Qh4 {[%clk 0:00:08.4]} 66...
Rf3 {[%clk 0:00:06.7]} 67. Ra7 {[%clk 0:00:06.9]} 67... Bf7 {[%clk 0:00:05.7]}
68. Bd6 {[%clk 0:00:04.4]} 68... Qe6 {[%clk 0:00:04.7]} 69. Ra8+ {[%clk
0:00:05.1]} 69... Be8 {[%clk 0:00:05.7]} 70. Be5 {[%clk 0:00:05.9]} 70... Kf7
{[%clk 0:00:02.7]} 71. Qh7+ {[%clk 0:00:06.8]} 71... Kf8 {[%clk 0:00:04]} 72.
Qg7# {[%clk 0:00:08.1]} 1-0

[Event "*** Titled Tuesday Blitz"]
[Site "Chess.com"]
[Date "2019.04.02"]
[Round "8"]
[White "IMRosen"]
[Black "Vuk2000"]
[Result "0-1"]
[WhiteElo "2531"]
[BlackElo "2715"]
[TimeControl "180+2"]
[EndTime "15:53:34 PDT"]
[Termination "Vuk2000 won by checkmate"]

1. d4 {[%clk 0:03:01.9]} 1... e6 {[%clk 0:03:01.3]} 2. Bf4 {[%clk 0:03:02.5]}
2... Nf6 {[%clk 0:03:02.1]} 3. e3 {[%clk 0:03:03.1]} 3... d5 {[%clk 0:03:03.1]}
4. Nd2 {[%clk 0:03:03]} 4... Bd6 {[%clk 0:03:04.4]} 5. Bg3 {[%clk 0:03:01.9]}
5... O-O {[%clk 0:03:05.3]} 6. Ngf3 {[%clk 0:03:02.9]} 6... b6 {[%clk
0:03:05.2]} 7. Ne5 {[%clk 0:02:55.8]} 7... Bb7 {[%clk 0:03:04.5]} 8. c3 {[%clk
0:02:55.2]} 8... c5 {[%clk 0:03:04.2]} 9. Bd3 {[%clk 0:02:56.7]} 9... Nc6 {[%clk
0:03:04.6]} 10. Qb1 {[%clk 0:02:53.5]} 10... Qc7 {[%clk 0:02:59.5]} 11. f4
{[%clk 0:02:48.7]} 11... g6 {[%clk 0:02:54.8]} 12. O-O {[%clk 0:02:45.5]} 12...
Nh5 {[%clk 0:02:40.8]} 13. Bh4 {[%clk 0:02:42.4]} 13... f5 {[%clk 0:02:32.8]}
14. Ndf3 {[%clk 0:02:39.3]} 14... cxd4 {[%clk 0:02:28.2]} 15. cxd4 {[%clk
0:02:33.3]} 15... Nb4 {[%clk 0:02:29.2]} 16. Be2 {[%clk 0:02:33.4]} 16... Rac8
{[%clk 0:02:24.6]} 17. a3 {[%clk 0:02:31.3]} 17... Nc6 {[%clk 0:01:33.3]} 18.
Rc1 {[%clk 0:02:32.1]} 18... Qg7 {[%clk 0:01:30.9]} 19. b4 {[%clk 0:02:28.5]}
19... Nf6 {[%clk 0:01:27]} 20. Bxf6 {[%clk 0:02:26.8]} 20... Rxf6 {[%clk
0:01:27]} 21. Ra2 {[%clk 0:02:26.1]} 21... Rff8 {[%clk 0:01:19.3]} 22. Rac2
{[%clk 0:02:26.2]} 22... Nb8 {[%clk 0:01:19.8]} 23. Ng5 {[%clk 0:02:20.5]} 23...
Qe7 {[%clk 0:01:17.3]} 24. Bb5 {[%clk 0:02:06.4]} 24... Rxc2 {[%clk 0:01:12.2]}
25. Rxc2 {[%clk 0:02:05.6]} 25... Rc8 {[%clk 0:01:13]} 26. Nef7 {[%clk 0:01:43]}
26... Rxc2 {[%clk 0:00:34.6]} 27. Qxc2 {[%clk 0:01:44.9]} 27... Bc7 {[%clk
0:00:30.1]} 28. Nh6+ {[%clk 0:01:36.2]} 28... Kh8 {[%clk 0:00:14.2]} 29. Nxe6
{[%clk 0:01:32.8]} 29... Bd6 {[%clk 0:00:15.1]} 30. Ng5 {[%clk 0:00:46.3]} 30...
Qxe3+ {[%clk 0:00:15.4]} 31. Qf2 {[%clk 0:00:47.9]} 31... Bxf4 {[%clk
0:00:12.4]} 32. Nhf7+ {[%clk 0:00:40.2]} 32... Kg7 {[%clk 0:00:13]} 33. g3
{[%clk 0:00:41.8]} 33... Qxf2+ {[%clk 0:00:08.4]} 34. Kxf2 {[%clk 0:00:43.7]}
34... Bc1 {[%clk 0:00:10]} 35. Nd8 {[%clk 0:00:31.3]} 35... Bxg5 {[%clk
0:00:10.4]} 36. Nxb7 {[%clk 0:00:32.3]} 36... Be7 {[%clk 0:00:08.2]} 37. a4
{[%clk 0:00:21.7]} 37... Bxb4 {[%clk 0:00:07.3]} 38. Nd8 {[%clk 0:00:21.8]}
38... Kf6 {[%clk 0:00:08.4]} 39. Ke3 {[%clk 0:00:19.3]} 39... a6 {[%clk
0:00:05.1]} 40. Be8 {[%clk 0:00:12.7]} 40... Ke7 {[%clk 0:00:02.8]} 41. Nc6+
{[%clk 0:00:14.1]} 41... Kxe8 {[%clk 0:00:04.2]} 42. Nxb8 {[%clk 0:00:14.5]}
42... a5 {[%clk 0:00:03.5]} 43. Nc6 {[%clk 0:00:16]} 43... Bd6 {[%clk
0:00:04.5]} 44. Na7 {[%clk 0:00:16.7]} 44... Kd7 {[%clk 0:00:05.3]} 45. Nb5
{[%clk 0:00:18.6]} 45... Bb4 {[%clk 0:00:06.6]} 46. Kf3 {[%clk 0:00:19.7]} 46...
Bd2 {[%clk 0:00:07.6]} 47. g4 {[%clk 0:00:20.3]} 47... fxg4+ {[%clk 0:00:07]}
48. Kxg4 {[%clk 0:00:20.8]} 48... h5+ {[%clk 0:00:06.8]} 49. Kf3 {[%clk
0:00:21.4]} 49... Kc6 {[%clk 0:00:07.3]} 50. Na7+ {[%clk 0:00:21.9]} 50... Kd6
{[%clk 0:00:07.4]} 51. Nb5+ {[%clk 0:00:23.8]} 51... Kd7 {[%clk 0:00:08.8]} 52.
h3 {[%clk 0:00:21.4]} 52... Bg5 {[%clk 0:00:09.6]} 53. Kg3 {[%clk 0:00:21.7]}
53... Ke6 {[%clk 0:00:09.3]} 54. Nc7+ {[%clk 0:00:21]} 54... Kd6 {[%clk
0:00:10]} 55. Nb5+ {[%clk 0:00:22.5]} 55... Kd7 {[%clk 0:00:11.4]} 56. Kf3
{[%clk 0:00:22.5]} 56... Be7 {[%clk 0:00:11.6]} 57. Nc3 {[%clk 0:00:21.5]} 57...
Ke6 {[%clk 0:00:12]} 58. Nb5 {[%clk 0:00:15.9]} 58... Bd6 {[%clk 0:00:13.4]} 59.
Nc3 {[%clk 0:00:15.3]} 59... Be7 {[%clk 0:00:10.5]} 60. Nb5 {[%clk 0:00:15.9]}
60... Bb4 {[%clk 0:00:11.6]} 61. Nc7+ {[%clk 0:00:16.4]} 61... Kd6 {[%clk
0:00:11.6]} 62. Nb5+ {[%clk 0:00:18]} 62... Kc6 {[%clk 0:00:12.9]} 63. Na7+
{[%clk 0:00:16.4]} 63... Kd7 {[%clk 0:00:13.9]} 64. Nb5 {[%clk 0:00:16.9]} 64...
Be7 {[%clk 0:00:14.7]} 65. Kf4 {[%clk 0:00:16.9]} 65... Bf6 {[%clk 0:00:15.5]}
66. Ke3 {[%clk 0:00:15.7]} 66... g5 {[%clk 0:00:13.4]} 67. Kf3 {[%clk
0:00:16.6]} 67... Ke6 {[%clk 0:00:14.5]} 68. Nc7+ {[%clk 0:00:16.9]} 68... Kf5
{[%clk 0:00:15.9]} 69. Nb5 {[%clk 0:00:11]} 69... g4+ {[%clk 0:00:16.4]} 70.
hxg4+ {[%clk 0:00:12.5]} 70... hxg4+ {[%clk 0:00:15.5]} 71. Ke3 {[%clk
0:00:13.4]} 71... Bg5+ {[%clk 0:00:15.9]} 72. Kd3 {[%clk 0:00:12.3]} 72... g3
{[%clk 0:00:15.8]} 73. Ke2 {[%clk 0:00:07.2]} 73... Kg4 {[%clk 0:00:16.5]} 74.
Nc3 {[%clk 0:00:04.4]} 74... Bf6 {[%clk 0:00:14.3]} 75. Nxd5 {[%clk 0:00:02.5]}
75... Bxd4 {[%clk 0:00:15.1]} 76. Kf1 {[%clk 0:00:04]} 76... Kf3 {[%clk
0:00:14.3]} 77. Ke1 {[%clk 0:00:02.8]} 77... g2 {[%clk 0:00:15.1]} 78. Kd2
{[%clk 0:00:03.7]} 78... g1=Q {[%clk 0:00:16.5]} 79. Kd3 {[%clk 0:00:04.7]}
79... Qd1+ {[%clk 0:00:17.2]} 80. Kc4 {[%clk 0:00:05.6]} 80... Qxa4+ {[%clk
0:00:17.8]} 81. Kd3 {[%clk 0:00:05.1]} 81... Qd1+ {[%clk 0:00:14.3]} 82. Kc4
{[%clk 0:00:05.8]} 82... b5+ {[%clk 0:00:14.6]} 83. Kxb5 {[%clk 0:00:05.9]}
83... Qb3+ {[%clk 0:00:15.7]} 84. Kc6 {[%clk 0:00:06.2]} 84... Qc4+ {[%clk
0:00:16.8]} 85. Kd6 {[%clk 0:00:06.8]} 85... Qc5+ {[%clk 0:00:18.1]} 86. Ke6
{[%clk 0:00:07.2]} 86... Qc6+ {[%clk 0:00:19.2]} 87. Kf7 {[%clk 0:00:05]} 87...
Qxd5+ {[%clk 0:00:19.8]} 88. Ke8 {[%clk 0:00:06.5]} 88... Qe6+ {[%clk
0:00:20.2]} 89. Kf8 {[%clk 0:00:06.7]} 89... Be3 {[%clk 0:00:18.8]} 90. Kg7
{[%clk 0:00:07.2]} 90... Kg4 {[%clk 0:00:19.5]} 91. Kh7 {[%clk 0:00:07.9]} 91...
Qf7+ {[%clk 0:00:18.3]} 92. Kh8 {[%clk 0:00:08.2]} 92... Bd4# {[%clk 0:00:19.8]}
0-1